fUSD/lending_fUSD_20241221
["ID","MTS","AMOUNT","RATE_DAILY","PERIOD"]
[346236200,1734795990890,500.0,0.00019452,2]
[346236201,1734795991138,500.0,0.00019726,2]
[346236202,1734795991375,500.0,0.0002,2]
[346236203,1734795991538,500.0,0.00019452,2]
[346236204,1734795991850,500.0,0.00019726,2]
[346236205,1734795992096,530.04,0.0002,2]
[346236206,1734795994328,1017.04991164,0.00019331,2]
[346236207,1734795994565,500.0,0.00019178,2]
[346236208,1734795994626,500.0,0.00019178,2]
[346236209,1734795994818,500.0,0.00019452,2]
[346236210,1734795995108,500.0,0.00019726,2]
[346236211,1734795995356,158.44324498,0.0002,2]
[346236212,1734795995800,500.0,0.00019178,2]
[346236213,1734795996048,500.0,0.00019452,2]
[346236214,1734795996367,643.53878895,0.00019726,2]
[346236215,1734795996479,543.85,0.00019178,2]
[346236216,1734795998176,1456.24,0.00019178,2]
[346236217,1734795998410,500.0,0.00019178,2]
[346236218,1734795998473,1456.24,0.00019452,2]
[346236219,1734795998668,1456.24,0.00019726,2]
[346236220,1734795998934,1456.24,0.0002,2]
[346236221,1734795999002,500.0,0.00019178,2]
[346236222,1734795999272,500.0,0.00019452,2]
[346236223,1734795999520,500.0,0.00019726,2]
[346236224,1734795999754,500.0,0.0002,2]
[346236225,1734796000291,500.0,0.00019178,2]
[346236226,1734796002286,500.0,0.00019178,2]
[346236227,1734796002539,500.0,0.00019178,2]
[346236228,1734796002606,500.0,0.00019452,2]
[346236229,1734796002824,500.0,0.00019452,2]
[346236230,1734796002887,500.0,0.00019726,2]
[346236231,1734796002948,925.0,0.0001984,2]
[346236232,1734796003031,500.0,0.0002,2]
[346236233,1734796003090,500.0,0.00019726,2]
[346236234,1734796003154,500.0,0.00019178,2]
[346236235,1734796003298,500.0,0.0002,2]
[346236236,1734796003397,500.0,0.00019452,2]
[346236237,1734796003675,500.0,0.00019726,2]
[346236238,1734796003921,500.0,0.0002,2]
[346236239,1734796006238,500.0,0.00019178,2]
[346236240,1734796006436,1139.89,0.00019178,2]
[346236241,1734796006513,500.0,0.00019452,2]
[346236242,1734796006576,500.0,0.00019178,2]
[346236243,1734796006638,818.0,0.0001984,2]
[346236244,1734796006711,1139.89,0.00019452,2]
[346236245,1734796006785,500.0,0.00019726,2]
[346236246,1734796006972,1139.89,0.00019726,2]
[346236247,1734796007044,500.0,0.0002,2]
[346236248,1734796007237,1139.89,0.0002,2]
[346236249,1734796010371,500.0,0.00019178,2]
[346236250,1734796010631,500.0,0.00019452,2]
[346236251,1734796010876,500.0,0.00019726,2]
[346236252,1734796011698,500.0,0.0002,2]
[346236253,1734796011986,3769.0,0.0001984,2]
[346236254,1734796015007,2048.69,0.00019178,2]
[346236255,1734796015272,2048.69,0.00019452,2]
[346236256,1734796015565,2048.69,0.00019726,2]
[346236257,1734796015631,500.0,0.00019178,2]
[346236258,1734796015782,500.0,0.00019178,2]
[346236259,1734796015840,500.0,0.00019178,2]
[346236260,1734796015912,2048.69,0.0002,2]
[346236261,1734796016043,500.0,0.00019452,2]
[346236262,1734796016182,500.0,0.00019452,2]
[346236263,1734796016366,500.0,0.00019726,2]
[346236264,1734796016428,500.0,0.00019726,2]
[346236265,1734796016581,528.22,0.00019178,2]
[346236266,1734796016645,159.44,0.0002,2]
[346236267,1734796016708,500.0,0.0002,2]
[346236268,1734796016835,528.22,0.00019452,2]
[346236269,1734796017103,528.22,0.00019726,2]
[346236270,1734796017364,528.22,0.0002,2]
[346236271,1734796019022,1255.0,0.0001984,2]
[346236272,1734796019193,1063.72954908,0.000196,2]
[346236273,1734796022945,500.0,0.00019178,2]
[346236274,1734796023114,500.0,0.00019178,2]
[346236275,1734796023384,500.0,0.00019452,2]
[346236276,1734796023701,500.0,0.00019726,2]
[346236277,1734796024053,500.0,0.0002,2]
[346236278,1734796025612,815.7655305,0.0002,2]
[346236279,1734796027334,500.0,0.00019178,2]
[346236280,1734796027677,500.0,0.00019178,2]
[346236281,1734796029153,494.0,0.00019178,2]
[346236282,1734796030104,500.0,0.00019178,2]
[346236283,1734796030369,500.0,0.00019452,2]
[346236284,1734796030738,500.0,0.00019726,2]
[346236285,1734796030957,500.0,0.0002,2]
[346236286,1734796031372,500.0,0.00019178,2]
[346236287,1734796031724,500.0,0.00019178,2]
[346236288,1734796032316,500.0,0.00019452,2]
[346236289,1734796032405,500.0,0.00019726,2]
[346236290,1734796032540,500.0,0.0002,2]
[346236291,1734796033083,907.36,0.00019178,2]
[346236292,1734796033343,907.36,0.00019452,2]
[346236293,1734796033591,1489.22445,0.0002,2]
[346236294,1734796033654,907.36,0.00019726,2]
[346236295,1734796033733,325.09,0.00019349,2]
[346236296,1734796033888,907.36,0.0002,2]
[346236297,1734796034750,500.0,0.00019178,2]
[346236298,1734796034811,3681.0,0.0001984,2]
[346236299,1734796035137,500.0,0.00019452,2]
[346236300,1734796035402,500.0,0.00019726,2]
[346236301,1734796035697,500.0,0.0002,2]
[346236302,1734796036123,500.0,0.00019178,2]
[346236303,1734796036194,534.47,0.00019178,2]
[346236304,1734796036414,534.47,0.00019452,2]
[346236305,1734796036540,559.88,0.00019178,2]
[346236306,1734796036684,534.47,0.00019726,2]
[346236307,1734796036858,763.58,0.00019178,2]
[346236308,1734796036924,559.88,0.00019452,2]
[346236309,1734796037045,534.47,0.0002,2]
[346236310,1734796037120,763.58,0.00019452,2]
[346236311,1734796037183,559.88,0.00019726,2]
[346236312,1734796037388,763.58,0.00019726,2]
[346236313,1734796037453,559.88,0.0002,2]
[346236314,1734796037651,763.58,0.0002,2]
[346236315,1734796038754,536.0,0.0001984,2]
[346236316,1734796041775,647.95,0.00019178,2]
[346236317,1734796042031,647.95,0.00019452,2]
[346236318,1734796042302,647.95,0.00019726,2]
[346236319,1734796042643,647.95,0.0002,2]
[346236320,1734796043594,500.0,0.00019178,2]
[346236321,1734796043859,500.0,0.00019452,2]
[346236322,1734796044144,500.0,0.00019726,2]
[346236323,1734796044399,500.0,0.0002,2]
[346236324,1734796048034,500.0,0.00019178,2]
[346236325,1734796048099,500.0,0.00019178,2]
[346236326,1734796048296,500.0,0.00019452,2]
[346236327,1734796048533,500.0,0.00019726,2]
[346236328,1734796048696,500.0,0.00019178,2]
[346236329,1734796048815,500.0,0.0002,2]
[346236330,1734796048970,500.0,0.00019452,2]
[346236331,1734796049214,436.16,0.00019349,2]
[346236332,1734796049281,500.0,0.00019726,2]
[346236333,1734796049527,500.0,0.0002,2]
[346236334,1734796050257,1117.96591707,0.000196,2]
[346236335,1734796055930,516.96,0.00019178,2]
[346236336,1734796056204,516.96,0.00019452,2]
[346236337,1734796056473,516.96,0.00019726,2]
[346236338,1734796056739,516.96,0.0002,2]
[346236339,1734796057236,500.0,0.00019178,2]
[346236340,1734796057495,500.0,0.00019452,2]
[346236341,1734796057736,236.45,0.00019726,2]
[346236342,1734796058008,500.0,0.00019178,2]
[346236343,1734796058514,500.0,0.00019178,2]
[346236344,1734796060520,500.0,0.00019178,2]
[346236345,1734796062095,500.0,0.00019178,2]
[346236346,1734796062349,500.0,0.00019452,2]
[346236347,1734796062627,500.0,0.00019726,2]
[346236348,1734796063099,500.0,0.0002,2]
[346236349,1734796064071,500.0,0.00019178,2]
[346236350,1734796064135,500.0,0.00019178,2]
[346236351,1734796064538,500.0,0.00019452,2]
[346236352,1734796064795,500.0,0.00019726,2]
[346236353,1734796065062,500.0,0.0002,2]
[346236354,1734796067606,500.0,0.00019178,2]
[346236355,1734796067802,500.0,0.00019178,2]
[346236356,1734796067924,151.6,0.00019452,2]
[346236357,1734796068042,500.0,0.00019452,2]
[346236358,1734796068337,500.0,0.00019726,2]
[346236359,1734796068575,500.0,0.0002,2]
[346236360,1734796073817,589.95,0.00019178,2]
[346236361,1734796074085,589.95,0.00019452,2]
[346236362,1734796074353,589.95,0.00019726,2]
[346236363,1734796074639,589.95,0.0002,2]
[346236364,1734796074753,500.0,0.00019178,2]
[346236365,1734796075031,565.63495905,0.00019452,2]
[346236366,1734796076404,802.17433,0.0002,2]
[346236367,1734796082418,500.0,0.00019178,2]
[346236368,1734796082671,500.0,0.00019452,2]
[346236369,1734796082982,500.0,0.00019726,2]
[346236370,1734796083260,500.0,0.0002,2]
[346236371,1734796084080,522.34296257,0.00019178,2]
[346236372,1734796084870,561.17,0.00019178,2]
[346236373,1734796085131,561.17,0.00019452,2]
[346236374,1734796085362,1148.79668976,0.000196,2]
[346236375,1734796085699,561.17,0.00019726,2]
[346236376,1734796085840,561.17,0.0002,2]
[346236377,1734796091796,500.0,0.00019178,2]
[346236378,1734796092041,500.0,0.00019452,2]
[346236379,1734796092290,500.0,0.00019726,2]
[346236380,1734796092558,500.0,0.0002,2]
[346236381,1734796093348,2514.56,0.00019178,2]
[346236382,1734796093629,2514.56,0.00019452,2]
[346236383,1734796093911,2514.56,0.00019726,2]
[346236384,1734796094002,500.0,0.00019178,2]
[346236385,1734796094178,2514.56,0.0002,2]
[346236386,1734796094288,500.0,0.00019452,2]
[346236387,1734796094541,500.0,0.00019726,2]
[346236388,1734796094821,500.0,0.0002,2]
[346236389,1734796098863,500.0,0.00019178,2]
[346236390,1734796099150,500.0,0.00019452,2]
[346236391,1734796099410,500.0,0.00019726,2]
[346236392,1734796099713,500.0,0.0002,2]
[346236393,1734796101951,500.0,0.00019178,2]
[346236394,1734796102202,245.3356456,0.00019452,2]
[346236395,1734796102447,500.0,0.00019178,2]
[346236396,1734796102708,500.0,0.00019452,2]
[346236397,1734796102952,500.0,0.00019726,2]
[346236398,1734796103267,500.0,0.0002,2]
[346236399,1734796103328,1659.26,0.0002,2]
[346236400,1734796104186,500.0,0.00019178,2]
[346236401,1734796104337,514.64394136,0.00019452,2]
[346236402,1734796108694,633.77,0.00019178,2]
[346236403,1734796108963,633.77,0.00019452,2]
[346236404,1734796109222,2110.0,0.0002,2]
[346236405,1734796109357,633.77,0.00019726,2]
[346236406,1734796109609,633.77,0.0002,2]
[346236407,1734796109691,513.46,0.00019178,2]
[346236408,1734796109764,500.0,0.00019178,2]
[346236409,1734796109967,513.46,0.00019452,2]
[346236410,1734796110060,500.0,0.00019452,2]
[346236411,1734796110236,513.46,0.00019726,2]
[346236412,1734796110314,500.0,0.00019726,2]
[346236413,1734796110571,500.0,0.0002,2]
[346236414,1734796110863,513.46,0.0002,2]
[346236415,1734796111476,550.66,0.00019178,2]
[346236416,1734796111731,550.66,0.00019452,2]
[346236417,1734796112095,550.66,0.00019726,2]
[346236418,1734796112345,550.66,0.0002,2]
[346236419,1734796113624,500.0,0.00019178,2]
[346236420,1734796113907,500.0,0.00019452,2]
[346236421,1734796114146,500.0,0.00019726,2]
[346236422,1734796114573,500.0,0.0002,2]
[346236423,1734796116370,500.0,0.00019178,2]
[346236424,1734796117346,500.0,0.00019178,2]
[346236425,1734796117923,500.0,0.00019452,2]
[346236426,1734796118181,500.0,0.00019178,2]
[346236427,1734796118261,500.0,0.00019726,2]
[346236428,1734796118593,520.34,0.0002,2]
[346236429,1734796118925,553.34244474,0.00019178,2]
[346236430,1734796119218,1241.02038,0.0002,2]
[346236431,1734796119402,500.0,0.00019178,2]
[346236432,1734796119649,510.94,0.00019452,2]
[346236433,1734796120323,500.0,0.00019178,2]
[346236434,1734796120415,596.74,0.00019178,2]
[346236435,1734796120581,500.0,0.00019178,2]
[346236436,1734796120752,596.74,0.00019452,2]
[346236437,1734796120868,500.0,0.00019452,2]
[346236438,1734796120951,596.74,0.00019726,2]
[346236439,1734796121102,500.0,0.00019726,2]
[346236440,1734796121187,596.74,0.0002,2]
[346236441,1734796121365,500.0,0.0002,2]
[346236442,1734796122135,500.0,0.00019178,2]
[346236443,1734796122569,500.0,0.00019178,2]
[346236444,1734796125408,1005.55,0.00019178,2]
[346236445,1734796125665,1005.55,0.00019452,2]
[346236446,1734796125910,1005.55,0.00019726,2]
[346236447,1734796126161,1005.55,0.0002,2]
[346236448,1734796126919,500.0,0.00019178,2]
[346236449,1734796127168,500.0,0.00019452,2]
[346236450,1734796127405,500.0,0.00019726,2]
[346236451,1734796127639,500.0,0.0002,2]
[346236452,1734796130591,500.0,0.00019178,2]
[346236453,1734796131191,500.0,0.00019452,2]
[346236454,1734796131489,500.0,0.00019726,2]
[346236455,1734796131755,500.0,0.0002,2]
[346236456,1734796134179,500.0,0.00019178,2]
[346236457,1734796135997,857.74,0.00019178,2]
[346236458,1734796136073,500.0,0.00019178,2]
[346236459,1734796136153,857.74,0.00019452,2]
[346236460,1734796136226,500.0,0.00019452,2]
[346236461,1734796136317,857.74,0.00019726,2]
[346236462,1734796136492,500.0,0.00019726,2]
[346236463,1734796136688,857.74,0.0002,2]
[346236464,1734796136773,500.0,0.0002,2]
[346236465,1734796138147,500.0,0.00019178,2]
[346236466,1734796141450,500.0,0.00019178,2]
[346236467,1734796141951,500.0,0.00019178,2]
[346236468,1734796143391,500.0,0.00019178,2]
[346236469,1734796143688,500.0,0.00019452,2]
[346236470,1734796143929,500.0,0.00019726,2]
[346236471,1734796144178,500.0,0.0002,2]
[346236472,1734796144246,1224.02,0.00019178,2]
[346236473,1734796144448,1224.02,0.00019452,2]
[346236474,1734796144710,1224.02,0.00019726,2]
[346236475,1734796144962,1224.02,0.0002,2]
[346236476,1734796149183,500.0,0.00019178,2]
[346236477,1734796149471,226.86820121,0.00019178,2]
[346236478,1734796150198,500.0,0.00019178,2]
[346236479,1734796150454,500.0,0.00019452,2]
[346236480,1734796150755,500.0,0.00019726,2]
[346236481,1734796151006,500.0,0.0002,2]
[346236482,1734796151402,500.0,0.00019178,2]
[346236483,1734796152298,500.0,0.00019178,2]
[346236484,1734796153355,1000.0,0.00019178,2]
[346236485,1734796153611,1000.0,0.00019452,2]
[346236486,1734796153677,500.0,0.00019178,2]
[346236487,1734796153893,1000.0,0.00019726,2]
[346236488,1734796154157,1000.0,0.0002,2]
[346236489,1734796155741,500.0,0.00019178,2]
[346236490,1734796157707,500.0,0.00019178,2]
[346236491,1734796157991,500.0,0.00019452,2]
[346236492,1734796158053,406.49828108,0.00019178,2]
[346236493,1734796158425,500.0,0.00019726,2]
[346236494,1734796158688,500.0,0.0002,2]
[346236495,1734796159315,500.0,0.00019178,2]
[346236496,1734796159572,500.0,0.00019452,2]
[346236497,1734796159818,551.28,0.00019726,2]
[346236498,1734796159874,1228.78,0.00019178,2]
[346236499,1734796160128,1228.78,0.00019452,2]
[346236500,1734796160729,1228.78,0.00019726,2]
[346236501,1734796161156,500.0,0.00019178,2]
[346236502,1734796161380,1228.78,0.0002,2]
[346236503,1734796161450,500.0,0.00019452,2]
[346236504,1734796161658,500.0,0.00019178,2]
[346236505,1734796161719,500.0,0.00019726,2]
[346236506,1734796161950,500.0,0.0002,2]
[346236507,1734796162042,668.47861,0.0002,2]
[346236508,1734796162367,1122.01137602,0.000196,2]
[346236509,1734796162832,577.66,0.00019178,2]
[346236510,1734796164033,500.0,0.00019178,2]
[346236511,1734796164300,500.0,0.00019452,2]
[346236512,1734796164578,500.0,0.00019726,2]
[346236513,1734796164666,500.0,0.00019178,2]
[346236514,1734796164831,500.0,0.0002,2]
[346236515,1734796164928,500.0,0.00019452,2]
[346236516,1734796165071,500.0,0.00019178,2]
[346236517,1734796165189,500.0,0.00019726,2]
[346236518,1734796165440,500.0,0.0002,2]
[346236519,1734796168093,637.27,0.00019178,2]
[346236520,1734796168367,637.27,0.00019452,2]
[346236521,1734796168633,637.27,0.00019726,2]
[346236522,1734796168897,637.27,0.0002,2]
[346236523,1734796171067,500.0,0.00019178,2]
[346236524,1734796171322,500.0,0.00019452,2]
[346236525,1734796171563,500.0,0.00019726,2]
[346236526,1734796171630,500.0,0.00019178,2]
[346236527,1734796171819,500.0,0.0002,2]
[346236528,1734796171879,500.0,0.00019452,2]
[346236529,1734796172115,500.0,0.00019726,2]
[346236530,1734796172372,500.0,0.0002,2]
[346236531,1734796175193,1081.6,0.00019178,2]
[346236532,1734796175576,1081.6,0.00019452,2]
[346236533,1734796175810,1081.6,0.00019726,2]
[346236534,1734796176160,1081.6,0.0002,2]
[346236535,1734796178634,500.0,0.00019178,2]
[346236536,1734796178897,500.0,0.00019452,2]
[346236537,1734796179162,500.0,0.00019726,2]
[346236538,1734796179440,500.0,0.0002,2]
[346236539,1734796183657,500.0,0.00019178,2]
[346236540,1734796184032,500.0,0.00019452,2]
[346236541,1734796184274,500.0,0.00019726,2]
[346236542,1734796184530,500.0,0.0002,2]
[346236543,1734796188371,500.0,0.00019178,2]
[346236544,1734796188816,806.71,0.00019178,2]
[346236545,1734796189116,806.71,0.00019452,2]
[346236546,1734796189385,806.71,0.00019726,2]
[346236547,1734796189643,806.71,0.0002,2]
[346236548,1734796192539,500.0,0.00019178,2]
[346236549,1734796192788,156.66,0.00019452,2]
[346236550,1734796196773,536.6,0.00019178,2]
[346236551,1734796196870,536.6,0.00019452,2]
[346236552,1734796197106,536.6,0.00019726,2]
[346236553,1734796197360,536.6,0.0002,2]
[346236554,1734796199576,500.0,0.00019178,2]
[346236555,1734796199863,592.76,0.00019452,2]
[346236556,1734796201950,535.71,0.00019178,2]
[346236557,1734796202237,535.71,0.00019452,2]
[346236558,1734796202501,535.71,0.00019726,2]
[346236559,1734796202791,535.71,0.0002,2]
[346236560,1734796204778,1034.18365,0.0002,2]
[346236561,1734796206009,500.0,0.00019178,2]
[346236562,1734796206302,500.0,0.00019452,2]
[346236563,1734796206544,500.0,0.00019726,2]
[346236564,1734796207047,500.0,0.0002,2]
[346236565,1734796213164,250.0,0.0001984,2]
[346236566,1734796215728,590.36,0.00019178,2]
[346236567,1734796216183,590.36,0.00019452,2]
[346236568,1734796216442,590.36,0.00019726,2]
[346236569,1734796216721,590.36,0.0002,2]
[346236570,1734796216962,500.0,0.00019178,2]
[346236571,1734796217353,500.0,0.00019452,2]
[346236572,1734796217587,500.0,0.00019726,2]
[346236573,1734796217832,500.0,0.0002,2]
[346236574,1734796217896,228.0,0.0001984,2]
[346236575,1734796218745,13754.0,0.0001984,2]
[346236576,1734796220517,500.0,0.00019178,2]
[346236577,1734796220803,500.0,0.00019452,2]
[346236578,1734796222808,500.0,0.00019178,2]
[346236579,1734796222968,1170.0,0.0001984,2]
[346236580,1734796223071,500.0,0.00019452,2]
[346236581,1734796223323,500.0,0.00019726,2]
[346236582,1734796223597,502.88,0.0002,2]
[346236583,1734796225254,1108.70053755,0.000196,2]
[346236584,1734796225658,500.0,0.00019178,2]
[346236585,1734796225949,500.0,0.00019452,2]
[346236586,1734796226170,500.0,0.00019726,2]
[346236587,1734796226436,393.69,0.0002,2]
[346236588,1734796228695,3886.0,0.0001984,2]
[346236589,1734796231667,500.0,0.00019178,2]
[346236590,1734796231929,500.0,0.00019452,2]
[346236592,1734796232245,500.0,0.00019726,2]
[346236599,1734796232513,500.0,0.0002,2]
[346236600,1734796232615,-300.0,0.00020013,2]
[346236601,1734796232625,-500.0,0.00020014,2]
[346236602,1734796232635,-500.0,0.00020014,2]
[346236603,1734796232648,-500.0,0.00020014,2]
[346236604,1734796232657,-500.0,0.00020014,2]
[346236605,1734796232667,-500.0,0.00020014,2]
[346236606,1734796232676,-139.97598838,0.00020014,2]
[346236607,1734796232689,-360.02401162,0.00020014,2]
[346236608,1734796232698,-500.0,0.00020014,2]
[346236609,1734796232707,-500.0,0.00020014,2]
[346236610,1734796232718,-150.0,0.00020027,2]
[346236611,1734796232728,-214.14,0.00020027,2]
[346236612,1734796232738,-300.0,0.00020027,2]
[346236613,1734796232747,-365.07,0.00020027,2]
[346236614,1734796232757,-304.43,0.00020027,2]
[346236615,1734796232766,-976.98,0.00020027,2]
[346236616,1734796232776,-880.05,0.00020027,2]
[346236617,1734796232786,-150.0,0.00020027,2]
[346236618,1734796232796,-293.94,0.00020027,2]
[346236619,1734796232807,-152.68,0.00020027,2]
[346236620,1734796232816,-365.07,0.00020027,2]
[346236621,1734796232826,-976.98,0.00020027,2]
[346236622,1734796232835,-150.0,0.00020027,2]
[346236623,1734796232853,-365.07,0.00020027,2]
[346236624,1734796232862,-150.0,0.00020027,2]
[346236625,1734796232872,-976.98,0.00020027,2]
[346236626,1734796232881,-976.98,0.00020027,2]
[346236627,1734796232891,-327.87,0.00020027,2]
[346236628,1734796232900,-364.93,0.00020027,2]
[346236629,1734796232910,-976.98,0.00020027,2]
[346236630,1734796232923,-365.07,0.00020027,2]
[346236631,1734796232933,-500.0,0.00020072,2]
[346236632,1734796232943,-500.0,0.00020072,2]
[346236633,1734796232952,-500.0,0.00020072,2]
[346236635,1734796232962,-500.0,0.00020072,2]
[346236637,1734796232971,-500.0,0.00020072,2]
[346236639,1734796232981,-500.0,0.00020072,2]
[346236641,1734796232990,-494.66175297,0.00020072,2]
[346236642,1734796233000,-500.0,0.00020072,2]
[346236645,1734796233010,-500.0,0.00020072,2]
[346236646,1734796233020,-500.0,0.00020072,2]
[346236648,1734796233030,-500.0,0.00020072,2]
[346236651,1734796233041,-500.0,0.00020072,2]
[346236653,1734796233051,-500.0,0.00020072,2]
[346236654,1734796233062,-500.0,0.00020072,2]
[346236656,1734796233073,-500.0,0.00020072,2]
[346236658,1734796233084,-500.0,0.00020072,2]
[346236660,1734796233101,-500.0,0.00020072,2]
[346236662,1734796233111,-500.0,0.00020072,2]
[346236664,1734796233121,-500.0,0.00020072,2]
[346236666,1734796233130,-497.76778129,0.00020072,2]
[346236667,1734796233141,-500.0,0.00020072,2]
[346236668,1734796233151,-594.75,0.00020072,2]
[346236669,1734796233162,-504.10622799,0.00020072,2]
[346236670,1734796233172,-500.0,0.00020072,2]
[346236671,1734796233181,-500.0,0.00020072,2]
[346236672,1734796233192,-500.0,0.00020072,2]
[346236673,1734796233202,-708.76,0.00020072,2]
[346236674,1734796233212,-500.0,0.00020072,2]
[346236675,1734796233222,-500.0,0.00020072,2]
[346236676,1734796233233,-500.0,0.00020072,2]
[346236677,1734796233243,-500.0,0.00020072,2]
[346236678,1734796233253,-500.0,0.00020072,2]
[346236679,1734796233263,-500.0,0.00020072,2]
[346236680,1734796233273,-500.0,0.00020072,2]
[346236681,1734796233283,-500.0,0.00020072,2]
[346236682,1734796233293,-500.0,0.00020072,2]
[346236683,1734796233303,-500.0,0.00020072,2]
[346236684,1734796233313,-500.0,0.00020072,2]
[346236685,1734796233323,-500.0,0.00020072,2]
[346236686,1734796233333,-500.0,0.00020072,2]
[346236688,1734796233346,-500.0,0.00020072,2]
[346236690,1734796233356,-500.0,0.00020072,2]
[346236692,1734796233366,-500.0,0.00020072,2]
[346236694,1734796233376,-500.0,0.00020072,2]
[346236696,1734796233386,-500.0,0.00020072,2]
[346236698,1734796233396,-500.0,0.00020072,2]
[346236700,1734796233406,-500.0,0.00020072,2]
[346236702,1734796233416,-502.54713006,0.00020072,2]
[346236704,1734796233425,-500.0,0.00020072,2]
[346236706,1734796233435,-500.0,0.00020072,2]
[346236708,1734796233444,-500.0,0.00020072,2]
[346236710,1734796233454,-501.23492446,0.00020072,2]
[346236712,1734796233463,-500.0,0.00020072,2]
[346236715,1734796233479,-502.30394919,0.00020072,2]
[346236717,1734796233489,-500.0,0.00020072,2]
[346236719,1734796233499,-500.0,0.00020072,2]
[346236721,1734796233508,-609.8241224,0.00020072,2]
[346236723,1734796233519,-500.0,0.00020072,2]
[346236725,1734796233530,-779.33,0.00020072,2]
[346236727,1734796233539,-616.57468046,0.00020072,2]
[346236729,1734796233549,-500.0,0.00020072,2]
[346236731,1734796233559,-500.0,0.00020072,2]
[346236733,1734796233569,-500.0,0.00020072,2]
[346236735,1734796233580,-500.0,0.00020072,2]
[346236737,1734796233590,-329.58547379,0.00020072,2]
[346236739,1734796233599,-507.15173181,0.00020072,2]
[346236741,1734796233618,-500.0,0.00020072,2]
[346236743,1734796233630,-500.0,0.00020072,2]
[346236744,1734796233643,-500.0,0.00020072,2]
[346236745,1734796233654,-500.0,0.00020072,2]
[346236746,1734796233664,-1034.4,0.00020072,2]
[346236747,1734796233674,-502.29099749,0.00020072,2]
[346236748,1734796233685,-924.47,0.00020072,2]
[346236749,1734796233694,-500.0,0.00020072,2]
[346236750,1734796233704,-500.0,0.00020072,2]
[346236751,1734796233714,-500.0,0.00020072,2]